[Event "Early-Titled-Tuesday-Blitz-January-23-2024"]
[Site "Chess.com"]
[Date "2024.01.23"]
[Round "1"]
[White "ChessGiantYouTube"]
[Black "SCIM"]
[Result "0-1"]
[WhiteElo "2210"]
[BlackElo "2588"]
[TimeControl "180+1"]
[EndTime "8:08:19 PST"]
[Termination "SCIM won by resignation"]

1. g3 {[%clk 0:03:00.2]} 1... Nf6 {[%clk 0:02:58.7]} 2. Bg2 {[%clk 0:03:00.4]}
2... g6 {[%clk 0:02:59.6]} 3. d3 {[%clk 0:03:00.3]} 3... Bg7 {[%clk 0:03:00.4]}
4. e3 {[%clk 0:03:00.8]} 4... O-O {[%clk 0:03:01]} 5. Ne2 {[%clk 0:03:01.1]}
5... d5 {[%clk 0:03:01.5]} 6. h3 {[%clk 0:03:01.5]} 6... Nc6 {[%clk 0:03:01]} 7.
Nd2 {[%clk 0:03:01.6]} 7... e5 {[%clk 0:03:01.5]} 8. b3 {[%clk 0:03:01.5]} 8...
Be6 {[%clk 0:02:59.9]} 9. Bb2 {[%clk 0:03:01.4]} 9... Qd7 {[%clk 0:02:52.1]} 10.
a3 {[%clk 0:03:00.1]} 10... Rad8 {[%clk 0:02:48.6]} 11. b4 {[%clk 0:02:54.6]}
11... a6 {[%clk 0:02:47.5]} 12. Nb3 {[%clk 0:02:38.7]} 12... b6 {[%clk
0:02:44.5]} 13. Qd2 {[%clk 0:02:25.9]} 13... Rfe8 {[%clk 0:02:43.1]} 14. a4
{[%clk 0:02:24.8]} 14... d4 {[%clk 0:02:06.7]} 15. b5 {[%clk 0:01:52.9]} 15...
axb5 {[%clk 0:02:02.8]} 16. axb5 {[%clk 0:01:50]} 16... Ne7 {[%clk 0:02:03.2]}
17. exd4 {[%clk 0:01:43.6]} 17... Bxb3 {[%clk 0:01:59.4]} 18. cxb3 {[%clk
0:01:14.5]} 18... exd4 {[%clk 0:01:59]} 19. O-O {[%clk 0:01:07.1]} 19... Qxb5
{[%clk 0:01:53.2]} 20. Nxd4 {[%clk 0:01:04.9]} 20... Qh5 {[%clk 0:01:51.9]} 21.
g4 {[%clk 0:00:47.1]} 21... Qc5 {[%clk 0:01:19.8]} 22. Rfc1 {[%clk 0:00:38.4]}
22... Qd6 {[%clk 0:01:19.2]} 23. Nb5 {[%clk 0:00:32.1]} 23... Qxd3 {[%clk
0:01:18.5]} 24. Qxd3 {[%clk 0:00:30.8]} 24... Rxd3 {[%clk 0:01:19.4]} 25. Nxc7
{[%clk 0:00:31.3]} 25... Red8 {[%clk 0:01:15.6]} 26. Re1 {[%clk 0:00:29.1]}
26... Rxb3 {[%clk 0:01:03]} 27. Rab1 {[%clk 0:00:22.2]} 27... Rd7 {[%clk
0:00:45.9]} 28. Bxf6 {[%clk 0:00:17.5]} 28... Rxb1 {[%clk 0:00:46.8]} 29. Rxb1
{[%clk 0:00:17.1]} 29... Bxf6 {[%clk 0:00:47.1]} 30. Nb5 {[%clk 0:00:14.3]}
30... Rd2 {[%clk 0:00:44.3]} 31. Na3 {[%clk 0:00:12.8]} 31... Bd4 {[%clk
0:00:41.7]} 32. Rf1 {[%clk 0:00:13.4]} 32... Bc5 {[%clk 0:00:38.2]} 33. Nc4
{[%clk 0:00:12.8]} 33... Rc2 {[%clk 0:00:37.6]} 34. Ne3 {[%clk 0:00:13.2]} 34...
Bxe3 {[%clk 0:00:32.9]} 35. fxe3 {[%clk 0:00:14.1]} 35... Nc8 {[%clk 0:00:29.1]}
36. Rf2 {[%clk 0:00:13.8]} 36... Rxf2 {[%clk 0:00:27.7]} 37. Kxf2 {[%clk
0:00:14.7]} 37... Kf8 {[%clk 0:00:25.3]} 38. Bd5 {[%clk 0:00:15.2]} 38... Ke7
{[%clk 0:00:24.4]} 39. Kf3 {[%clk 0:00:15.7]} 39... f6 {[%clk 0:00:22.3]} 40.
Bb3 {[%clk 0:00:15.9]} 40... Nd6 {[%clk 0:00:20.5]} 41. h4 {[%clk 0:00:15.6]}
41... h6 {[%clk 0:00:16.7]} 42. h5 {[%clk 0:00:16.1]} 42... gxh5 {[%clk
0:00:09.1]} 43. gxh5 {[%clk 0:00:16.3]} 43... f5 {[%clk 0:00:09.7]} 44. Kf4
{[%clk 0:00:16.5]} 44... Kf6 {[%clk 0:00:10.3]} 45. Bc2 {[%clk 0:00:16.4]} 45...
b5 {[%clk 0:00:09.8]} 46. Bb3 {[%clk 0:00:15.8]} 46... b4 {[%clk 0:00:10.3]} 47.
Bc2 {[%clk 0:00:15.8]} 47... Ke6 {[%clk 0:00:09.1]} 48. Bb3+ {[%clk 0:00:16.3]}
48... Kf6 {[%clk 0:00:08.5]} 49. Bc2 {[%clk 0:00:17.2]} 49... Nc4 {[%clk
0:00:07.4]} 50. Bb3 {[%clk 0:00:17.1]} 50... Nd2 {[%clk 0:00:06.3]} 51. Bc2
{[%clk 0:00:17.1]} 51... b3 {[%clk 0:00:06.9]} 52. Bxf5 {[%clk 0:00:16.2]} 52...
b2 {[%clk 0:00:06.9]} 53. e4 {[%clk 0:00:16.1]} 53... Nc4 {[%clk 0:00:03.9]} 54.
e5+ {[%clk 0:00:17]} 54... Nxe5 {[%clk 0:00:04]} 55. Bb1 {[%clk 0:00:17.4]}
55... Nc4 {[%clk 0:00:03.8]} 56. Kg4 {[%clk 0:00:17.7]} 56... Na3 {[%clk
0:00:04.3]} 57. Bd3 {[%clk 0:00:17.8]} 57... b1=Q {[%clk 0:00:05.1]} 58. Bxb1
{[%clk 0:00:18.4]} 58... Nxb1 {[%clk 0:00:05.6]} 59. Kh4 {[%clk 0:00:19.3]}
59... Nc3 {[%clk 0:00:06.2]} 60. Kg4 {[%clk 0:00:20]} 60... Nd5 {[%clk
0:00:07.1]} 61. Kh4 {[%clk 0:00:20.9]} 61... Ne7 {[%clk 0:00:07.6]} 62. Kg4
{[%clk 0:00:21.8]} 62... Nf5 {[%clk 0:00:08.3]} 63. Kh3 {[%clk 0:00:21.6]} 63...
Kg5 {[%clk 0:00:09.2]} 64. Kg2 {[%clk 0:00:22]} 64... Kxh5 {[%clk 0:00:09.4]}
65. Kh2 {[%clk 0:00:22.9]} 65... Kg5 {[%clk 0:00:10.2]} 66. Kg2 {[%clk
0:00:23.8]} 66... h5 {[%clk 0:00:10.6]} 67. Kh1 {[%clk 0:00:24.7]} 67... h4
{[%clk 0:00:11.5]} 68. Kg2 {[%clk 0:00:25.6]} 68... Kg4 {[%clk 0:00:10.8]} 69.
Kh1 {[%clk 0:00:26.5]} 69... Ne3 {[%clk 0:00:10.8]} 70. Kg1 {[%clk 0:00:27.4]}
70... h3 {[%clk 0:00:10.9]} 71. Kh1 {[%clk 0:00:28.3]} 71... Kg3 {[%clk
0:00:11]} 72. Kg1 {[%clk 0:00:29.2]} 72... Ng4 {[%clk 0:00:11.2]} 73. Kh1 {[%clk
0:00:30.1]} 73... Nf2+ {[%clk 0:00:11.6]} 74. Kg1 {[%clk 0:00:31]} 74... h2+
{[%clk 0:00:11.7]} 0-1

[Event "Early-Titled-Tuesday-Blitz-January-23-2024"]
[Site "Chess.com"]
[Date "2024.01.23"]
[Round "1"]
[White "vladgoncharov"]
[Black "Heinza9"]
[Result "1-0"]
[WhiteElo "2636"]
[BlackElo "2315"]
[TimeControl "180+1"]
[EndTime "8:08:20 PST"]
[Termination "vladgoncharov won on time"]

1. d4 {[%clk 0:02:59.1]} 1... f5 {[%clk 0:02:59.6]} 2. c4 {[%clk 0:02:55]} 2...
Nf6 {[%clk 0:02:59.6]} 3. Nf3 {[%clk 0:02:52.4]} 3... g6 {[%clk 0:02:59.5]} 4.
g3 {[%clk 0:02:51.7]} 4... Bg7 {[%clk 0:02:59.7]} 5. Bg2 {[%clk 0:02:51.5]} 5...
O-O {[%clk 0:03:00]} 6. O-O {[%clk 0:02:50.7]} 6... d6 {[%clk 0:03:00.4]} 7. Nc3
{[%clk 0:02:47.5]} 7... Qe8 {[%clk 0:02:59.6]} 8. d5 {[%clk 0:02:47.1]} 8... a5
{[%clk 0:02:59.1]} 9. Re1 {[%clk 0:02:35.3]} 9... Na6 {[%clk 0:02:55.8]} 10. e4
{[%clk 0:02:33.9]} 10... fxe4 {[%clk 0:02:55.9]} 11. Nxe4 {[%clk 0:02:30.6]}
11... Nxe4 {[%clk 0:02:55.8]} 12. Rxe4 {[%clk 0:02:30.8]} 12... Nc5 {[%clk
0:02:55.6]} 13. Re1 {[%clk 0:02:28.7]} 13... Bg4 {[%clk 0:02:49.3]} 14. h3
{[%clk 0:02:25.6]} 14... Bd7 {[%clk 0:02:49.3]} 15. Qe2 {[%clk 0:02:15.5]} 15...
e5 {[%clk 0:02:26.1]} 16. Be3 {[%clk 0:01:56]} 16... b6 {[%clk 0:02:21.6]} 17.
Bxc5 {[%clk 0:01:55.1]} 17... bxc5 {[%clk 0:02:21.7]} 18. Ng5 {[%clk 0:01:55.7]}
18... Rb8 {[%clk 0:02:19.3]} 19. Ne4 {[%clk 0:01:50.8]} 19... a4 {[%clk
0:02:14.1]} 20. Rad1 {[%clk 0:01:44.9]} 20... Qf7 {[%clk 0:02:05.9]} 21. g4
{[%clk 0:01:43.3]} 21... h5 {[%clk 0:02:02.8]} 22. Rd3 {[%clk 0:01:32.7]} 22...
hxg4 {[%clk 0:01:59.8]} 23. hxg4 {[%clk 0:01:32.3]} 23... Qf4 {[%clk 0:01:59.8]}
24. Bf3 {[%clk 0:01:31.4]} 24... Rb4 {[%clk 0:01:52.6]} 25. b3 {[%clk
0:01:27.7]} 25... axb3 {[%clk 0:01:51.9]} 26. axb3 {[%clk 0:01:27.2]} 26... Ra8
{[%clk 0:01:42]} 27. Kg2 {[%clk 0:01:23.3]} 27... Ra3 {[%clk 0:01:37.8]} 28. Rb1
{[%clk 0:01:22.6]} 28... Rb8 {[%clk 0:01:27.8]} 29. Ng3 {[%clk 0:01:04.4]} 29...
Bh6 {[%clk 0:01:01.6]} 30. Qe4 {[%clk 0:01:02.8]} 30... Qxe4 {[%clk 0:00:59.7]}
31. Nxe4 {[%clk 0:01:02.5]} 31... Kg7 {[%clk 0:00:59.1]} 32. g5 {[%clk
0:01:01.1]} 32... Bxg5 {[%clk 0:00:52.4]} 33. Nxg5 {[%clk 0:01:00.7]} 33... Bf5
{[%clk 0:00:52.7]} 34. Be4 {[%clk 0:01:00.3]} 34... Kf6 {[%clk 0:00:52]} 35.
Bxf5 {[%clk 0:01:00.1]} 35... gxf5 {[%clk 0:00:52.3]} 36. Ne6 {[%clk 0:01:00.5]}
36... e4 {[%clk 0:00:48.4]} 37. Rh3 {[%clk 0:00:59.3]} 37... Rg8+ {[%clk
0:00:44.4]} 38. Kf1 {[%clk 0:00:57]} 38... Ra2 {[%clk 0:00:39.3]} 39. Nxc7
{[%clk 0:00:50.6]} 39... Ke5 {[%clk 0:00:37.1]} 40. Ne6 {[%clk 0:00:43.9]} 40...
Rg6 {[%clk 0:00:25.4]} 41. Re1 {[%clk 0:00:42.7]} 41... Rb2 {[%clk 0:00:22.8]}
42. f3 {[%clk 0:00:31.3]} 42... Rgg2 {[%clk 0:00:17.4]} 43. f4+ {[%clk 0:00:20]}
43... Kf6 {[%clk 0:00:17.1]} 44. Rh6+ {[%clk 0:00:20.4]} 44... Ke7 {[%clk
0:00:14.6]} 45. Ra1 {[%clk 0:00:14.6]} 45... Rbf2+ {[%clk 0:00:09.5]} 46. Ke1
{[%clk 0:00:14.9]} 46... Rg1+ {[%clk 0:00:07.1]} 47. Kxf2 {[%clk 0:00:14.2]}
47... Rxa1 {[%clk 0:00:07.1]} 48. Rh7+ {[%clk 0:00:13.7]} 48... Kf6 {[%clk
0:00:07.1]} 49. Rh6+ {[%clk 0:00:13.5]} 49... Ke7 {[%clk 0:00:07.1]} 50. Ng7
{[%clk 0:00:13.5]} 50... Ra2+ {[%clk 0:00:05.9]} 51. Ke3 {[%clk 0:00:13.8]}
51... Rb2 {[%clk 0:00:05.9]} 52. Nxf5+ {[%clk 0:00:14.3]} 52... Kf7 {[%clk
0:00:06.3]} 53. Nxd6+ {[%clk 0:00:13.5]} 53... Kg7 {[%clk 0:00:06.5]} 54. Rh5
{[%clk 0:00:13.2]} 54... Rxb3+ {[%clk 0:00:06.1]} 55. Kxe4 {[%clk 0:00:13.6]}
55... Rc3 {[%clk 0:00:06.5]} 56. Ke5 {[%clk 0:00:13.6]} 56... Re3+ {[%clk
0:00:06]} 57. Kf5 {[%clk 0:00:13.1]} 57... Rc3 {[%clk 0:00:06]} 58. Ke6 {[%clk
0:00:13.4]} 58... Re3+ {[%clk 0:00:05]} 59. Kd7 {[%clk 0:00:13.6]} 59... Rf3
{[%clk 0:00:04.3]} 60. f5 {[%clk 0:00:13.9]} 60... Kf6 {[%clk 0:00:01.3]} 61.
Rh6+ {[%clk 0:00:13.6]} 1-0

[Event "Early-Titled-Tuesday-Blitz-January-23-2024"]
[Site "Chess.com"]
[Date "2024.01.23"]
[Round "1"]
[White "PepeCuenca"]
[Black "medalja"]
[Result "1-0"]
[WhiteElo "2718"]
[BlackElo "2399"]
[TimeControl "180+1"]
[EndTime "8:08:22 PST"]
[Termination "PepeCuenca won on time"]

1. d4 {[%clk 0:03:00.9]} 1... d5 {[%clk 0:02:44.7]} 2. Bf4 {[%clk 0:03:00.7]}
2... c6 {[%clk 0:02:42.7]} 3. e3 {[%clk 0:02:58.8]} 3... Nf6 {[%clk 0:02:38.6]}
4. Nf3 {[%clk 0:02:45.5]} 4... Bg4 {[%clk 0:02:37.4]} 5. Nbd2 {[%clk 0:02:42.3]}
5... e6 {[%clk 0:02:36.3]} 6. h3 {[%clk 0:02:41]} 6... Bh5 {[%clk 0:02:35.1]} 7.
c4 {[%clk 0:02:31.8]} 7... Bd6 {[%clk 0:02:08.9]} 8. Bxd6 {[%clk 0:02:24.9]}
8... Qxd6 {[%clk 0:02:09.4]} 9. Qb3 {[%clk 0:02:25.5]} 9... Qc7 {[%clk
0:02:02.3]} 10. Ne5 {[%clk 0:02:22.2]} 10... Nbd7 {[%clk 0:01:55.6]} 11. f4
{[%clk 0:02:21.3]} 11... Bg6 {[%clk 0:01:52.3]} 12. Rc1 {[%clk 0:02:12]} 12...
Nxe5 {[%clk 0:01:49.6]} 13. fxe5 {[%clk 0:02:04.8]} 13... Ne4 {[%clk 0:01:49.5]}
14. cxd5 {[%clk 0:01:45.8]} 14... Qa5 {[%clk 0:01:04]} 15. Rd1 {[%clk
0:01:35.1]} 15... exd5 {[%clk 0:01:03.6]} 16. Qxb7 {[%clk 0:00:53.6]} 16... O-O
{[%clk 0:01:01.5]} 17. Qa6 {[%clk 0:00:54.1]} 17... Qb4 {[%clk 0:00:52.9]} 18.
Qa3 {[%clk 0:00:53.3]} 18... Qxa3 {[%clk 0:00:29.7]} 19. bxa3 {[%clk 0:00:54.2]}
19... Nc3 {[%clk 0:00:29.9]} 20. Rc1 {[%clk 0:00:49.9]} 20... Nxa2 {[%clk
0:00:29.8]} 21. Rxc6 {[%clk 0:00:50]} 21... Rac8 {[%clk 0:00:28.2]} 22. Rc5
{[%clk 0:00:17.2]} 22... Rxc5 {[%clk 0:00:23.9]} 23. dxc5 {[%clk 0:00:18.1]}
23... Rc8 {[%clk 0:00:23.1]} 24. Nb3 {[%clk 0:00:18.4]} 24... a5 {[%clk
0:00:11.8]} 25. Ba6 {[%clk 0:00:15.8]} 25... Rc7 {[%clk 0:00:11.8]} 26. a4
{[%clk 0:00:14.1]} 26... Nc3 {[%clk 0:00:10.3]} 27. Bb5 {[%clk 0:00:12.8]} 27...
h5 {[%clk 0:00:07.8]} 28. Kf2 {[%clk 0:00:10.1]} 28... Ne4+ {[%clk 0:00:08.2]}
29. Kf3 {[%clk 0:00:10]} 29... Nxc5 {[%clk 0:00:07.8]} 30. Rc1 {[%clk
0:00:09.5]} 30... Ne6 {[%clk 0:00:06.4]} 31. Rxc7 {[%clk 0:00:09.8]} 31... Nxc7
{[%clk 0:00:07.3]} 32. Nxa5 {[%clk 0:00:10.2]} 32... Be4+ {[%clk 0:00:07.4]} 33.
Kf2 {[%clk 0:00:08.3]} 33... f6 {[%clk 0:00:08]} 34. exf6 {[%clk 0:00:07.9]}
34... gxf6 {[%clk 0:00:08.3]} 35. Nc6 {[%clk 0:00:08.1]} 35... Kf7 {[%clk
0:00:04.7]} 36. Nd4 {[%clk 0:00:08.5]} 36... Ke7 {[%clk 0:00:04.2]} 37. a5
{[%clk 0:00:09]} 37... Nxb5 {[%clk 0:00:03.1]} 38. Nxb5 {[%clk 0:00:08.9]} 38...
Kd7 {[%clk 0:00:03.1]} 39. a6 {[%clk 0:00:04.9]} 39... Kc6 {[%clk 0:00:03.2]}
40. a7 {[%clk 0:00:04.3]} 40... Kb7 {[%clk 0:00:04.1]} 41. Nd6+ {[%clk 0:00:03]}
41... Kxa7 {[%clk 0:00:04.8]} 42. Nxe4 {[%clk 0:00:03.7]} 42... dxe4 {[%clk
0:00:05.5]} 43. Kg3 {[%clk 0:00:04.4]} 43... Kb6 {[%clk 0:00:05.6]} 44. Kf4
{[%clk 0:00:04.9]} 44... Kc5 {[%clk 0:00:04.8]} 45. Kxe4 {[%clk 0:00:05.5]}
45... Kd6 {[%clk 0:00:04.9]} 46. Kf5 {[%clk 0:00:06]} 46... Ke7 {[%clk 0:00:05]}
47. Kg6 {[%clk 0:00:06.5]} 47... Ke6 {[%clk 0:00:04.1]} 48. Kxh5 {[%clk
0:00:07]} 48... Ke5 {[%clk 0:00:04.9]} 49. Kg6 {[%clk 0:00:07.4]} 49... f5
{[%clk 0:00:04.2]} 50. Kg5 {[%clk 0:00:07.7]} 50... Ke4 {[%clk 0:00:02.3]} 51.
h4 {[%clk 0:00:08.1]} 51... Kxe3 {[%clk 0:00:00.8]} 52. Kxf5 {[%clk 0:00:08.3]}
52... Kf2 {[%clk 0:00:01.5]} 53. h5 {[%clk 0:00:09.2]} 1-0

[Event "Early-Titled-Tuesday-Blitz-January-23-2024"]
[Site "Chess.com"]
[Date "2024.01.23"]
[Round "1"]
[White "chucksterf10"]
[Black "Akylbek2021"]
[Result "0-1"]
[WhiteElo "2577"]
[BlackElo "2245"]
[TimeControl "180+1"]
[EndTime "8:08:26 PST"]
[Termination "Akylbek2021 won by resignation"]

1. Nf3 {[%clk 0:03:00.5]} 1... Nf6 {[%clk 0:02:59.8]} 2. g3 {[%clk 0:02:59.8]}
2... g6 {[%clk 0:02:58]} 3. b4 {[%clk 0:03:00]} 3... Bg7 {[%clk 0:02:58.1]} 4.
Bb2 {[%clk 0:03:00.5]} 4... O-O {[%clk 0:02:58.4]} 5. c4 {[%clk 0:03:00.1]} 5...
d5 {[%clk 0:02:58.1]} 6. cxd5 {[%clk 0:03:00.3]} 6... Qxd5 {[%clk 0:02:58.6]} 7.
Nc3 {[%clk 0:03:00]} 7... Qd6 {[%clk 0:02:49.7]} 8. a3 {[%clk 0:02:58.6]} 8...
a5 {[%clk 0:02:49.9]} 9. bxa5 {[%clk 0:02:55.1]} 9... Nc6 {[%clk 0:02:47.3]} 10.
Bg2 {[%clk 0:02:50.6]} 10... Nxa5 {[%clk 0:02:46.3]} 11. d3 {[%clk 0:02:45.2]}
11... Nd5 {[%clk 0:02:28.7]} 12. Ne4 {[%clk 0:02:42.2]} 12... Qb6 {[%clk
0:02:16.5]} 13. Bxg7 {[%clk 0:02:39.8]} 13... Kxg7 {[%clk 0:02:17.4]} 14. O-O
{[%clk 0:02:37.9]} 14... Bf5 {[%clk 0:02:06.2]} 15. Rb1 {[%clk 0:02:32.2]} 15...
Qa6 {[%clk 0:02:04.5]} 16. Qa4 {[%clk 0:02:28.2]} 16... Nc6 {[%clk 0:01:42]} 17.
Qxa6 {[%clk 0:02:20.8]} 17... Rxa6 {[%clk 0:01:42.9]} 18. Nc5 {[%clk 0:02:21.4]}
18... Rxa3 {[%clk 0:01:41.2]} 19. e4 {[%clk 0:02:21.9]} 19... Nc3 {[%clk
0:00:59.5]} 20. exf5 {[%clk 0:02:22]} 20... Nxb1 {[%clk 0:00:59.5]} 21. Rxb1
{[%clk 0:02:22.9]} 21... b6 {[%clk 0:01:00.1]} 22. Nd7 {[%clk 0:02:14.9]} 22...
Rd8 {[%clk 0:00:52.8]} 23. Rc1 {[%clk 0:02:04.6]} 23... Rxd7 {[%clk 0:00:46.7]}
24. Rxc6 {[%clk 0:02:03.2]} 24... Rdxd3 {[%clk 0:00:31.4]} 25. h4 {[%clk
0:01:21.1]} 25... Rxf3 {[%clk 0:00:30.2]} 26. Bxf3 {[%clk 0:01:22]} 26... Rxf3
{[%clk 0:00:30.6]} 27. fxg6 {[%clk 0:01:22.9]} 27... hxg6 {[%clk 0:00:29.3]} 28.
Rxc7 {[%clk 0:01:23.6]} 28... e5 {[%clk 0:00:14.3]} 29. Kf1 {[%clk 0:01:19.5]}
29... Rb3 {[%clk 0:00:09.8]} 30. Ke2 {[%clk 0:01:19.9]} 30... b5 {[%clk
0:00:09.8]} 31. Rb7 {[%clk 0:01:20.2]} 31... b4 {[%clk 0:00:10.1]} 32. Rb6
{[%clk 0:01:19.5]} 32... f5 {[%clk 0:00:08.2]} 33. Rb5 {[%clk 0:01:14.2]} 33...
e4 {[%clk 0:00:07.3]} 34. Rb6 {[%clk 0:01:14.8]} 34... Kh6 {[%clk 0:00:07.5]}
35. Rb8 {[%clk 0:01:09.7]} 35... Rb2+ {[%clk 0:00:03.2]} 36. Ke3 {[%clk
0:01:10.3]} 36... b3 {[%clk 0:00:03.6]} 37. f3 {[%clk 0:01:05.8]} 37... exf3
{[%clk 0:00:02.5]} 38. Kxf3 {[%clk 0:01:06.7]} 38... Rb1 {[%clk 0:00:02]} 39.
Rb7 {[%clk 0:01:00.9]} 39... b2 {[%clk 0:00:01.8]} 40. Kg2 {[%clk 0:01:01.8]}
40... Kh5 {[%clk 0:00:01.7]} 41. Rh7+ {[%clk 0:01:02]} 41... Kg4 {[%clk
0:00:02.3]} 42. Rb7 {[%clk 0:01:02.6]} 42... g5 {[%clk 0:00:02.8]} 43. Rb4+
{[%clk 0:01:02.7]} 43... f4 {[%clk 0:00:02.3]} 44. hxg5 {[%clk 0:01:02.7]} 44...
Kxg5 {[%clk 0:00:01.9]} 45. gxf4+ {[%clk 0:01:03.3]} 45... Kf5 {[%clk
0:00:02.6]} 46. Kh2 {[%clk 0:01:03.2]} 46... Kg4 {[%clk 0:00:02.9]} 47. Kg2
{[%clk 0:01:03.4]} 47... Kf5 {[%clk 0:00:03]} 48. Kh2 {[%clk 0:00:53.8]} 48...
Kg4 {[%clk 0:00:03.6]} 49. Rb8 {[%clk 0:00:47.7]} 49... Kxf4 {[%clk 0:00:03.5]}
50. Kg2 {[%clk 0:00:48.1]} 50... Ke3 {[%clk 0:00:03.7]} 51. Re8+ {[%clk
0:00:48.3]} 51... Kd2 {[%clk 0:00:04]} 52. Rd8+ {[%clk 0:00:48.9]} 52... Kc3
{[%clk 0:00:04.4]} 53. Rc8+ {[%clk 0:00:49.8]} 53... Kb4 {[%clk 0:00:05.1]} 54.
Rb8+ {[%clk 0:00:50.4]} 54... Kc5 {[%clk 0:00:05.8]} 55. Rc8+ {[%clk 0:00:51]}
55... Kb6 {[%clk 0:00:06.6]} 56. Rb8+ {[%clk 0:00:51.7]} 56... Kc6 {[%clk
0:00:06.2]} 57. Rb3 {[%clk 0:00:52.6]} 57... Kd5 {[%clk 0:00:04.2]} 58. Kh2
{[%clk 0:00:53.2]} 58... Kc4 {[%clk 0:00:04.1]} 59. Rb8 {[%clk 0:00:54.1]} 59...
Kd3 {[%clk 0:00:02.5]} 60. Rd8+ {[%clk 0:00:54]} 60... Kc2 {[%clk 0:00:02.7]}
61. Rc8+ {[%clk 0:00:54.6]} 61... Kb3 {[%clk 0:00:03.4]} 62. Rb8+ {[%clk
0:00:55.2]} 62... Ka4 {[%clk 0:00:03.6]} 63. Kg2 {[%clk 0:00:55.5]} 63... Ka5
{[%clk 0:00:03.9]} 64. Kh2 {[%clk 0:00:55.3]} 64... Ka6 {[%clk 0:00:03.9]} 65.
Rb3 {[%clk 0:00:56]} 65... Ka7 {[%clk 0:00:04.6]} 66. Kg2 {[%clk 0:00:56.5]}
66... Ka6 {[%clk 0:00:03.1]} 67. Ra3+ {[%clk 0:00:57.1]} 67... Kb5 {[%clk
0:00:03.5]} 68. Rb3+ {[%clk 0:00:58]} 68... Kc4 {[%clk 0:00:04.2]} 69. Rb8
{[%clk 0:00:58.9]} 69... Kd5 {[%clk 0:00:04.9]} 70. Kh2 {[%clk 0:00:58.8]} 70...
Ke6 {[%clk 0:00:05.4]} 71. Rb5 {[%clk 0:00:58.7]} 71... Kd6 {[%clk 0:00:05.3]}
72. Kg2 {[%clk 0:00:58.5]} 72... Kc6 {[%clk 0:00:05.5]} 73. Rb3 {[%clk
0:00:59.4]} 73... Kc5 {[%clk 0:00:05.6]} 74. Rb7 {[%clk 0:01:00.1]} 74... Kd4
{[%clk 0:00:06.3]} 75. Kh2 {[%clk 0:01:00.1]} 75... Ke3 {[%clk 0:00:06.9]} 76.
Kg2 {[%clk 0:01:00]} 76... Ke2 {[%clk 0:00:07.3]} 77. Re7+ {[%clk 0:01:00]}
77... Kd3 {[%clk 0:00:07.8]} 78. Rd7+ {[%clk 0:01:00.8]} 78... Kc2 {[%clk
0:00:08.5]} 79. Rc7+ {[%clk 0:01:01.4]} 79... Kd3 {[%clk 0:00:08.7]} 80. Rb7
{[%clk 0:01:01.2]} 80... Ke4 {[%clk 0:00:09.1]} 81. Rb3 {[%clk 0:01:01.1]} 81...
Kf4 {[%clk 0:00:09]} 82. Kh2 {[%clk 0:01:01.3]} 82... Kg4 {[%clk 0:00:09.3]} 83.
Kg2 {[%clk 0:01:01.7]} 83... Kf5 {[%clk 0:00:09.8]} 84. Rb4 {[%clk 0:01:02.1]}
84... Ke5 {[%clk 0:00:10.3]} 85. Kh2 {[%clk 0:01:02.3]} 85... Kd6 {[%clk
0:00:11.2]} 86. Rb5 {[%clk 0:01:02.5]} 86... Kc6 {[%clk 0:00:12]} 87. Rb3 {[%clk
0:01:02.8]} 87... Kd7 {[%clk 0:00:12.9]} 88. Rb6 {[%clk 0:01:02.6]} 88... Kc8
{[%clk 0:00:13.8]} 89. Rxb2 {[%clk 0:01:01.8]} 89... Rxb2+ {[%clk 0:00:13.8]}
0-1

[Event "Early-Titled-Tuesday-Blitz-January-23-2024"]
[Site "Chess.com"]
[Date "2024.01.23"]
[Round "1"]
[White "FARIZA2018"]
[Black "sergoy"]
[Result "0-1"]
[WhiteElo "2520"]
[BlackElo "3017"]
[TimeControl "180+1"]
[EndTime "8:08:28 PST"]
[Termination "sergoy won on time"]

1. e4 {[%clk 0:03:00.9]} 1... c5 {[%clk 0:03:00.2]} 2. Nf3 {[%clk 0:03:01.1]}
2... d6 {[%clk 0:03:00.9]} 3. d4 {[%clk 0:03:01.3]} 3... cxd4 {[%clk 0:03:01.8]}
4. Nxd4 {[%clk 0:03:00.4]} 4... Nf6 {[%clk 0:03:02.2]} 5. Nc3 {[%clk 0:03:00.4]}
5... a6 {[%clk 0:03:02.9]} 6. Bg5 {[%clk 0:02:59.7]} 6... Nbd7 {[%clk
0:03:01.6]} 7. Qe2 {[%clk 0:02:59.2]} 7... h6 {[%clk 0:03:01]} 8. Bh4 {[%clk
0:02:55.8]} 8... g6 {[%clk 0:02:59.9]} 9. O-O-O {[%clk 0:02:54.6]} 9... Qc7
{[%clk 0:02:58]} 10. f4 {[%clk 0:02:54.2]} 10... e5 {[%clk 0:02:58.1]} 11. fxe5
{[%clk 0:02:48.4]} 11... dxe5 {[%clk 0:02:58.2]} 12. Nf3 {[%clk 0:02:47.1]}
12... b5 {[%clk 0:02:55.9]} 13. g4 {[%clk 0:02:19.7]} 13... b4 {[%clk
0:02:52.7]} 14. Nd5 {[%clk 0:02:19.3]} 14... Nxd5 {[%clk 0:02:52.9]} 15. exd5
{[%clk 0:02:18.8]} 15... Bd6 {[%clk 0:02:52.2]} 16. Bg2 {[%clk 0:02:16.7]} 16...
O-O {[%clk 0:02:46.3]} 17. Nd2 {[%clk 0:02:16.5]} 17... a5 {[%clk 0:02:38.2]}
18. Ne4 {[%clk 0:02:12.6]} 18... a4 {[%clk 0:02:38.4]} 19. Kb1 {[%clk
0:02:10.9]} 19... Nc5 {[%clk 0:02:31.6]} 20. Nxd6 {[%clk 0:01:49]} 20... Qxd6
{[%clk 0:02:32.5]} 21. Rhe1 {[%clk 0:01:32.9]} 21... Re8 {[%clk 0:02:27]} 22.
Bg3 {[%clk 0:01:30]} 22... b3 {[%clk 0:02:19.7]} 23. Bxe5 {[%clk 0:01:11.2]}
23... bxc2+ {[%clk 0:02:19]} 24. Kxc2 {[%clk 0:01:11.2]} 24... Qb6 {[%clk
0:02:15.1]} 25. d6 {[%clk 0:01:05.6]} 25... Ba6 {[%clk 0:02:14.3]} 26. Qe3
{[%clk 0:00:54.3]} 26... Rac8 {[%clk 0:01:26.9]} 27. Kb1 {[%clk 0:00:54]} 27...
Rxe5 {[%clk 0:01:27.1]} 28. Qxe5 {[%clk 0:00:51.6]} 28... Nd3 {[%clk 0:01:27.6]}
29. Rxd3 {[%clk 0:00:35.8]} 29... Bxd3+ {[%clk 0:01:28.5]} 30. Ka1 {[%clk
0:00:35.6]} 30... Rd8 {[%clk 0:01:08.8]} 31. d7 {[%clk 0:00:32.2]} 31... Bb5
{[%clk 0:00:54.3]} 32. Bd5 {[%clk 0:00:14.1]} 32... Rxd7 {[%clk 0:00:52.6]} 33.
g5 {[%clk 0:00:09.8]} 33... Qd6 {[%clk 0:00:45.4]} 34. Qxd6 {[%clk 0:00:09.4]}
34... Rxd6 {[%clk 0:00:45.5]} 35. Rd1 {[%clk 0:00:04.6]} 35... Kh7 {[%clk
0:00:42.9]} 36. gxh6 {[%clk 0:00:04.9]} 36... Kxh6 {[%clk 0:00:41.5]} 37. Bf3
{[%clk 0:00:05.2]} 37... Re6 {[%clk 0:00:35.4]} 38. Kb1 {[%clk 0:00:03.8]} 38...
f5 {[%clk 0:00:34.7]} 39. Kc1 {[%clk 0:00:04]} 39... Re3 {[%clk 0:00:34.6]} 40.
Bd5 {[%clk 0:00:03.6]} 40... f4 {[%clk 0:00:34.7]} 41. Kc2 {[%clk 0:00:03.9]}
41... g5 {[%clk 0:00:34.4]} 42. b3 {[%clk 0:00:04.2]} 42... a3 {[%clk
0:00:34.1]} 43. Bc4 {[%clk 0:00:03.5]} 43... Be8 {[%clk 0:00:32.5]} 44. Rd6+
{[%clk 0:00:04.1]} 44... Kh5 {[%clk 0:00:32.2]} 45. Ra6 {[%clk 0:00:04]} 45...
f3 {[%clk 0:00:30]} 46. Rxa3 {[%clk 0:00:04.7]} 46... f2 {[%clk 0:00:25.2]} 47.
Ra6 {[%clk 0:00:05.1]} 47... Rf3 {[%clk 0:00:16.2]} 48. Be2 {[%clk 0:00:03.6]}
48... g4 {[%clk 0:00:16]} 49. Bf1 {[%clk 0:00:02.6]} 49... Bg6+ {[%clk
0:00:13.3]} 50. Kd2 {[%clk 0:00:02.4]} 50... Bd3 {[%clk 0:00:08.3]} 51. Ra5+
{[%clk 0:00:02.7]} 51... Kh4 {[%clk 0:00:08.4]} 0-1